bitfinex-derivatives/quotes_ETHF0:USTF0_20250214
["timestamp","ask_amount","ask_price","bid_price","bid_amount"]
[1739574672734,0.73432,2722.9,2722.8,3.25035]
[1739574673325,0.00247259,2723.1,2722.8,2.516]
[1739574673538,0.73431,2723.0,2722.9,0.73432]
[1739574673738,0.00247259,2723.1,2722.8,2.516]
[1739574673938,0.73431,2723.0,2722.9,0.73431]
[1739574674737,0.00247259,2723.1,2723.0,0.7343]
[1739574681845,0.00247259,2723.1,2723.0,1.3184]
[1739574682436,12.80013712,2723.3,2723.0,1.3184]
[1739574682640,12.80013712,2723.3,2723.2,3.92531484]
[1739574682847,12.80013712,2723.3,2723.2,6.44131484]
[1739574683044,12.80013712,2723.3,2723.2,7.02581484]
[1739574683843,3.2078,2723.5,2723.4,0.73419]
[1739574685352,0.5733,2723.6,2723.2,8.12718484]
[1739574685551,0.5733,2723.6,2723.5,0.73416]
[1739574687554,1.30744,2723.6,2723.5,0.73416]
[1739574688442,0.73422,2723.3,2723.2,3.19107484]
[1739574688642,0.73422,2723.3,2723.1,0.73425]
[1739574688839,0.7343,2723.0,2722.9,0.368]
[1739574689754,0.73432,2722.9,2722.8,3.24933]
[1739574690052,0.6171,2722.9,2722.8,3.24933]
[1739574691344,0.6171,2722.9,2722.8,2.515]
[1739574691345,1.35142,2722.9,2722.8,2.515]
[1739574691652,1.35142,2722.9,2722.8,3.24935]
[1739574691653,0.6171,2722.9,2722.8,3.24935]
[1739574692551,1.35142,2722.9,2722.8,2.515]
[1739574692750,1.97432,2722.9,2722.8,3.24935]
[1739574692952,0.6246,2723.1,2722.8,2.515]
[1739574693155,1.35888,2723.1,2722.9,0.73431]
[1739574693354,1.35888,2723.1,2722.8,3.24933]
[1739574693651,0.6246,2723.1,2722.8,2.515]
[1739574693851,0.73432,2722.9,2722.8,2.515]
[1739574694051,0.6246,2723.1,2722.8,2.515]
[1739574694250,0.73432,2723.0,2722.8,3.24934]
[1739574694457,0.6246,2723.1,2722.8,3.24934]
[1739574694649,0.73432,2723.0,2722.8,3.24934]
[1739574695048,0.73431,2723.0,2722.9,0.368]
[1739574695250,0.6246,2723.1,2723.0,0.7343]
[1739574695450,0.6246,2723.1,2723.0,1.3221]
[1739574695753,1.35887,2723.1,2723.0,1.3221]
[1739574696248,5.15954,2723.3,2723.1,0.73425]
[1739574696453,3.2078,2723.3,2723.2,3.24924]
[1739574696649,0.6388,2723.5,2723.2,2.515]
[1739574697259,1.37297,2723.5,2723.3,0.7342]
[1739574697462,0.73421,2723.4,2723.2,2.515]
[1739574697757,1.37298,2723.5,2723.3,0.73422]
[1739574697957,0.6388,2723.5,2723.2,2.515]
[1739574698256,0.6388,2723.5,2723.2,3.24923]
[1739574698444,0.73422,2723.3,2723.2,2.515]
[1739574699558,0.7342,2723.4,2723.3,0.7342]
[1739574699757,0.7342,2723.4,2723.2,2.515]
[1739574700157,0.7342,2723.4,2723.2,3.24922]
[1739574700457,0.73422,2723.3,2723.2,3.24922]
[1739574700660,0.6388,2723.5,2723.4,0.73419]
[1739574701550,1.94292,2723.7,2723.3,3.2078]
[1739574701754,1.2088,2723.7,2723.6,0.73414]
[1739574702056,1.2088,2723.7,2723.6,3.24814]
[1739574702256,1.94291,2723.7,2723.6,3.24814]
[1739574702457,1.94291,2723.7,2723.6,2.514]
[1739574703654,1.94291,2723.7,2723.6,3.24814]
[1739574709168,1.94291,2723.7,2723.6,2.514]
[1739574709469,1.94291,2723.7,2723.6,3.24814]
[1739574709664,1.94291,2723.7,2723.6,2.514]
[1739574709868,1.94291,2723.7,2723.6,3.24814]
[1739574713468,3.94189,2723.8,2723.7,0.73411]
[1739574714970,3.94189,2723.8,2723.7,0.3672]
[1739574716165,0.73411,2723.7,2723.6,3.24812]
[1739574717670,0.73411,2723.7,2723.6,2.514]
[1739574719363,0.73411,2723.7,2723.6,3.24814]
[1739574719565,3.2078,2723.8,2723.6,2.514]
[1739574719768,3.9419,2723.8,2723.7,0.73411]
[1739574720170,12.80013712,2723.9,2723.6,2.514]
[1739574720376,13.53420712,2723.9,2723.8,0.73408]
[1739574721577,13.53418712,2723.9,2723.8,0.73408]
[1739574726371,12.80013712,2723.9,2723.8,0.73408]
[1739574726572,12.80013712,2723.9,2723.8,3.92515484]
[1739574727178,12.80013712,2723.9,2723.8,5.21990547]
[1739574727379,12.80013712,2723.9,2723.8,4.85779707]
[1739574727579,12.06940021,2723.9,2723.8,10.85779707]
[1739574727775,12.06940021,2723.9,2723.8,11.85580547]
[1739574728177,11.20852495,2723.9,2723.8,11.85580547]
[1739574728676,10.46552495,2723.9,2723.8,11.85580547]
[1739574729273,10.46552495,2723.9,2723.8,10.85779707]
[1739574730774,0.73388,2724.6,2724.4,0.7339]
[1739574730970,0.73388,2724.6,2724.5,2.512]
[1739574733378,0.73395,2724.3,2724.2,0.00550691]
[1739574733780,0.73395,2724.3,2723.6,20.345]
[1739574733781,0.73406,2723.9,2723.8,2.511]
[1739574734176,3.94184,2724.0,2723.8,3.24507]
[1739574734481,3.94184,2724.0,2723.8,2.511]
[1739574734482,3.2078,2724.0,2723.8,2.511]
[1739574734679,0.73406,2723.9,2723.8,2.511]
[1739574734882,0.73406,2723.9,2723.6,20.71770691]
[1739574735182,0.73411,2723.7,2723.6,20.71770691]
[1739574736187,0.6308,2723.8,2723.6,20.71770691]
[1739574736387,1.36488,2723.8,2723.7,0.73411]
[1739574736684,3.94183,2724.0,2723.9,0.73406]
[1739574737283,0.5959,2724.1,2724.0,0.73403]
[1739574737476,0.5959,2724.1,2724.0,6.43610484]
[1739574737673,0.00547248,2724.2,2724.1,0.734]
[1739574737881,0.00547248,2724.2,2724.1,1.332]
[1739574738488,0.00547248,2724.2,2724.1,4.5398]
[1739574753694,0.00547248,2724.2,2724.1,6.4518]
[1739574754896,0.00547248,2724.2,2724.1,6.819]
[1739574757494,0.00547248,2724.2,2724.1,27.161]
[1739574764202,0.00547248,2724.2,2724.1,27.16]
[1739574764403,0.00547248,2724.2,2724.1,20.7092]
[1739574764595,0.73944248,2724.2,2724.1,23.2182]
[1739574764792,0.73944248,2724.2,2724.1,22.851]
[1739574766703,0.73944248,2724.2,2724.1,23.585]
[1739574766898,0.73944248,2724.2,2724.1,21.076]
[1739574767409,0.73944248,2724.2,2724.1,20.342]
[1739574768496,0.00547248,2724.2,2724.1,21.076]
[1739574768699,0.73944248,2724.2,2724.1,21.076]
[1739574770407,0.00547248,2724.2,2724.1,23.585]
[1739574771798,0.00547248,2724.2,2724.1,26.7928]
[1739574774504,0.00547248,2724.2,2724.1,28.1580084]
[1739574774999,2.48e-06,2724.2,2724.1,34.2470084]
[1739574775396,2.48e-06,2724.2,2724.1,40.2470084]
[1739574775804,2.48e-06,2724.2,2724.1,34.2470084]
[1739574777500,2.48e-06,2724.2,2724.1,40.2470084]
[1739574778101,0.609,2725.0,2724.9,0.73379]
[1739574778296,0.609,2725.0,2724.9,9.64066484]
[1739574779602,12.80146123,2725.1,2724.9,9.19755055]
[1739574779800,12.80146123,2725.1,2725.0,0.73376]
[1739574781602,0.73379,2724.9,2724.7,0.73383]
[1739574781806,1.34072,2724.8,2724.6,3.92493484]
[1739574782006,1.34072,2724.8,2724.7,2.507]
[1739574782707,0.73385,2724.7,2724.5,0.73388]
[1739574782902,0.73384,2724.7,2724.6,2.507]
[1739574783103,0.6069,2724.8,2724.6,2.507]
[1739574783309,0.6069,2724.8,2724.6,5.69807484]
[1739574783509,0.6069,2724.8,2724.7,0.73384]
[1739574785202,0.6069,2724.8,2724.6,8.90587484]
[1739574785203,0.6542,2725.0,2724.9,0.73379]
[1739574785399,1.98447,2725.4,2724.9,3.19107484]
[1739574785603,2.61547,2725.4,2725.1,0.73373]
[1739574785807,2.61547,2725.4,2725.1,0.73371]
[1739574786009,1.8818,2725.4,2725.0,3.77050691]
[1739574786210,2.61545,2725.4,2725.1,0.73372]
[1739574786409,0.73369,2725.3,2725.1,0.73372]
[1739574786913,1.8818,2725.4,2725.0,3.77050691]
[1739574787115,1.8818,2725.4,2725.0,2.51250691]
[1739574787417,2.61547,2725.4,2725.1,0.73372]
[1739574787806,1.8818,2725.4,2725.1,0.73372]
[1739574788007,1.8818,2725.4,2725.0,3.16140691]
[1739574788208,2.61546,2725.4,2725.2,0.7337]
[1739574788409,0.73368,2725.3,2725.1,0.73372]
[1739574788710,1.8818,2725.4,2725.0,0.00550691]
[1739574789015,3.94151,2725.2,2725.1,2.507]
[1739574789318,1.8818,2725.4,2725.1,2.507]
[1739574789617,0.73369,2725.3,2725.1,2.507]
[1739574789927,0.73371,2725.2,2725.1,2.507]
[1739574790414,1.8818,2725.4,2725.1,2.507]
[1739574790816,1.8818,2725.4,2725.3,0.73368]
[1739574791007,2.61545,2725.4,2725.3,0.73368]
[1739574791208,2.61545,2725.4,2725.2,0.73368]
[1739574791410,1.8818,2725.4,2725.3,0.73368]
[1739574793219,1.8818,2725.4,2725.3,2.506]
[1739574793413,2.61545,2725.4,2725.3,2.506]
[1739574794717,2.61545,2725.4,2725.3,2.8732]
[1739574795320,2.61545,2725.4,2725.3,3.23968]
[1739574795916,2.61545,2725.4,2725.3,2.8732]
[1739574796514,2.61545,2725.4,2725.3,2.506]
[1739574796911,2.61545,2725.4,2725.3,3.60688]
[1739574797113,2.61545,2725.4,2725.3,2.8732]
[1739574797424,2.61545,2725.4,2725.3,2.506]
[1739574804221,2.61545,2725.4,2725.3,3.23968]
[1739574804921,2.61545,2725.4,2725.3,2.506]
[1739574805222,2.61545,2725.4,2725.3,3.23968]
[1739574805617,2.61545,2725.4,2725.3,2.506]
[1739574805921,2.61545,2725.4,2725.3,3.23968]
[1739574806120,2.61545,2725.4,2725.3,2.506]
[1739574807719,1.8818,2725.4,2725.3,3.23968]
[1739574808026,16.00926123,2725.5,2725.3,3.23968]
[1739574808027,12.80146123,2725.5,2725.4,0.73365]
[1739574809726,12.80146123,2725.9,2725.3,6.9841]
[1739574810025,12.80146123,2725.9,2725.7,3.92462484]
[1739574810220,12.80146123,2725.9,2725.8,2.505]
[1739574810424,12.80146123,2725.9,2725.8,3.90344]
[1739574810630,12.80146123,2725.9,2725.8,3.8323]
[1739574810829,13.53498123,2725.9,2725.8,3.8323]
[1739574811428,12.80146123,2725.9,2725.8,3.8323]
[1739574811627,12.80146123,2725.9,2725.8,4.56584]
[1739574813121,15.43404585,2726.9,2725.8,7.02337484]
[1739574813326,15.43404585,2726.9,2726.8,3.19107484]
[1739574813522,15.43404585,2726.9,2726.8,5.69607484]
[1739574814023,15.43404585,2726.9,2726.8,3.19107484]
[1739574814320,15.43404585,2726.9,2726.6,0.00550691]
[1739574814321,18.64184585,2726.9,2726.6,0.00550691]
[1739574814526,0.7333,2726.7,2726.6,0.00550691]
[1739574816014,2.64569,2726.8,2726.6,0.00550691]
[1739574816326,1.9124,2726.8,2726.6,0.00550691]
[1739574816525,0.7333,2726.7,2726.6,0.00550691]
[1739574816714,1.9124,2726.8,2726.6,0.00550691]
[1739574816917,0.7333,2726.7,2726.6,0.00550691]
[1739574817120,2.64569,2726.8,2726.6,0.73883691]
[1739574817325,2.64569,2726.8,2726.6,0.00550691]
[1739574817628,0.7333,2726.7,2726.6,0.00550691]
[1739574818118,2.64569,2726.8,2726.6,0.00550691]
[1739574818320,1.9124,2726.8,2726.6,0.00550691]
[1739574818521,0.7333,2726.7,2726.6,0.00550691]
[1739574818719,2.64569,2726.8,2726.6,0.00550691]
[1739574819121,0.7333,2726.7,2726.6,0.00550691]
[1739574820120,1.9124,2726.8,2726.6,0.00550691]
[1739574820320,0.7333,2726.7,2726.6,0.00550691]
[1739574820525,0.7333,2726.7,2726.6,1.38103691]
[1739574820824,1.9124,2726.8,2726.6,0.64770691]
[1739574821029,0.7333,2726.7,2726.6,1.38101691]
[1739574821532,0.7333,2726.7,2726.6,0.64770691]
[1739574822524,0.7333,2726.7,2726.6,1.38103691]
[1739574822722,0.7333,2726.7,2726.6,0.64770691]
[1739574824429,3.2078,2726.9,2726.6,0.64770691]
[1739574824631,3.2078,2726.9,2726.8,3.92434484]
[1739574824932,3.2078,2727.2,2727.1,0.73319]
[1739574825127,3.2078,2727.2,2727.1,3.92426484]
[1739574825327,0.73313,2727.4,2727.3,0.73311]
[1739574826623,0.73314,2727.3,2727.2,1.39756]
[1739574828032,0.73314,2727.3,2727.2,0.6644]
[1739574828331,1.37634,2727.3,2727.2,0.6644]
[1739574828630,1.37634,2727.3,2727.2,1.39757]
[1739574828829,1.37634,2727.3,2727.2,0.6644]
[1739574829033,0.64659881,2727.3,2727.1,3.19107484]
[1739574829229,0.73317,2727.2,2727.1,5.69407484]
[1739574829427,1.39457,2727.2,2727.1,5.69407484]
[1739574829723,1.39457,2727.2,2726.6,0.00550691]
[1739574829724,9.8692,2727.2,2726.6,0.00550691]
[1739574829927,0.7333,2726.7,2726.6,0.00550691]
[1739574830720,1.3813,2726.7,2726.6,0.00550691]
[1739574834629,1.3813,2726.7,2726.6,0.37270691]
[1739574835231,1.3813,2726.7,2726.6,0.00550691]
[1739574836630,1.3813,2726.7,2726.6,0.37270691]
[1739574836935,1.3813,2726.7,2726.6,0.00550691]
[1739574837136,1.3813,2726.7,2726.6,0.37270691]
[1739574837330,1.3813,2726.7,2726.6,0.00550691]
[1739574840732,1.3813,2726.7,2725.9,26.02807484]
[1739574840733,0.73349,2726.0,2725.9,26.02807484]
[1739574840941,0.73349,2726.0,2725.9,23.52607484]
[1739574841129,0.73349,2726.0,2725.9,20.335]
[1739574842535,0.73354,2725.8,2725.7,0.00550691]
[1739574842735,3.94134,2725.8,2725.7,0.00550691]
[1739574845432,9.94134,2725.8,2725.7,6.91e-06]
[1739574847136,13.13241484,2725.8,2725.7,6.91e-06]
[1739574850956,13.13241484,2725.8,2724.7,3.19107484]
[1739574850957,1.83393,2725.7,2724.7,3.19107484]
[1739574851259,3.94161,2724.8,2724.7,3.19107484]
[1739574852454,3.2078,2724.8,2724.7,3.92491484]
[1739574852861,3.94161,2724.8,2724.7,3.92491484]
[1739574853055,3.94161,2724.8,2724.7,3.19107484]
[1739574853656,3.94161,2724.8,2724.5,3.73980691]
[1739574853657,0.73387,2724.6,2724.5,3.73980691]
[1739574853854,0.73387,2724.6,2724.5,4.47369691]
[1739574854556,3.21330691,2724.8,2724.5,3.73980691]
[1739574854860,3.21330691,2724.8,2724.7,3.92491484]
[1739574855067,3.94711691,2724.8,2724.7,3.92491484]
[1739574855763,3.94711691,2724.8,2724.7,3.19107484]
[1739574856065,3.94711691,2724.8,2724.7,3.92491484]
[1739574856259,3.94711691,2724.8,2724.7,3.19107484]
[1739574856960,3.21330691,2724.8,2724.6,2.8692]
[1739574857265,0.73384,2724.7,2724.6,2.502]
[1739574858150,0.73387,2724.6,2724.5,1.23780691]
[1739574858351,0.73387,2724.6,2724.5,1.97169691]
[1739574858758,0.73387,2724.6,2724.5,1.23780691]
[1739574860561,0.73387,2724.6,2724.5,1.97169691]
[1739574860756,3.21330691,2724.8,2724.6,0.73385]
[1739574860757,0.73387,2724.7,2724.6,0.73385]
[1739574860958,0.73387,2724.6,2724.5,1.86590691]
[1739574861664,0.73387,2724.6,2724.5,2.59979691]
[1739574862165,0.73385,2724.7,2724.6,0.73386]
[1739574862660,0.73387,2724.6,2724.5,2.59978691]
[1739574863065,0.73387,2724.6,2724.5,1.86590691]
[1739574863268,0.73387,2724.6,2724.5,1.23780691]
[1739574865968,0.73387,2724.6,2724.5,0.60570691]
[1739574868567,0.73387,2724.6,2724.5,0.00550691]
[1739574871170,0.73387,2724.6,2724.5,0.73939691]
[1739574871669,0.73387,2724.6,2724.5,0.00550691]
[1739574872964,0.73387,2724.6,2724.5,0.73939691]
[1739574873164,0.73387,2724.6,2724.5,0.00550691]
[1739574874068,0.73387,2724.6,2724.5,0.73939691]
[1739574874471,0.73387,2724.6,2724.5,0.00550691]
[1739574875570,0.73387,2724.6,2724.5,0.73939691]
[1739574875871,0.73387,2724.6,2724.5,0.00550691]
[1739574877471,0.73387,2724.6,2724.5,0.73939691]
[1739574877871,0.73387,2724.6,2724.5,0.00550691]
[1739574886974,9.92494484,2724.6,2724.5,6.91e-06]
[1739574887181,0.73387,2724.6,2724.5,6.91e-06]
[1739574887383,0.73387,2724.6,2724.5,0.67130691]
[1739574887582,0.73387,2724.6,2724.5,1.32000691]
[1739574887980,5.04785691,2724.8,2724.5,1.32000691]
[1739574887981,3.21330691,2724.8,2724.5,1.32000691]
[1739574888179,3.21330691,2724.8,2724.6,0.73385]
[1739574888378,0.73386,2724.7,2724.6,0.73385]
[1739574888579,0.73385,2724.7,2724.6,0.73384]
[1739574888884,3.21330691,2724.8,2724.7,0.73384]
[1739574889087,3.21330691,2724.8,2724.7,3.92491484]
[1739574889687,0.00550691,2724.8,2724.7,3.92491484]
[1739574890583,0.73367,2725.4,2725.1,0.73371]
[1739574890787,0.73367,2725.4,2725.2,3.84387484]
[1739574890990,0.73368,2725.3,2725.2,3.84387484]
[1739574891176,0.73368,2725.3,2725.2,0.6528]
[1739574893179,3.2078,2725.4,2724.9,3.37383876]
[1739574893490,3.2078,2725.1,2724.8,0.6462]
[1739574894194,0.73379,2724.9,2724.8,0.6462]
[1739574895891,0.73379,2724.9,2724.8,1.38]
[1739574896091,0.73379,2724.9,2724.8,0.6462]
[1739574896684,0.73379,2724.9,2724.8,1.38001]
[1739574897493,0.73379,2724.9,2724.8,0.6462]
[1739574899495,0.73379,2724.9,2724.8,1.38001]
[1739574899695,0.73379,2724.9,2724.8,0.6462]
[1739574900295,0.73379,2724.9,2724.8,1.38001]
[1739574900593,3.2078,2725.4,2724.8,0.6462]
[1739574900793,0.73373,2725.2,2725.1,0.73372]
[1739574900993,0.73373,2725.2,2725.1,3.23372]
[1739574901491,3.2078,2725.4,2725.1,2.5]
[1739574901687,3.2078,2725.4,2725.3,3.92475484]
[1739574901886,3.94145,2725.4,2725.3,3.92475484]
[1739574902089,3.2078,2725.4,2725.3,3.92475484]
[1739574902295,0.73915691,2725.5,2725.4,0.73365]
[1739574902596,0.73915691,2725.5,2725.4,1.34045]
[1739574903992,0.73915691,2725.5,2725.4,10.54825]
[1739574903993,0.00550691,2725.5,2725.4,10.54825]
[1739574904203,3.94128,2726.1,2725.9,0.73349]
[1739574904495,3.94128,2726.1,2726.0,0.6274]
[1739574905199,3.2078,2726.1,2725.7,2.5]
[1739574905394,0.7336,2725.6,2725.5,0.6274]
[1739574905594,0.6656,2726.3,2725.4,2.499]
[1739574905595,3.2078,2725.8,2725.4,2.499]
[1739574905791,3.94142,2725.5,2725.4,2.499]
[1739574906091,6.39887484,2725.5,2724.7,3.19107484]
[1739574906294,0.73381,2724.8,2724.7,3.1264]
[1739574906802,0.73387,2724.6,2724.5,6.91e-06]
[1739574909597,3.2133,2724.8,2724.7,0.73384]
[1739574909894,3.2133,2724.8,2724.7,5.69007484]
[1739574910100,3.94711,2724.8,2724.7,5.69007484]
[1739574910992,3.94711,2724.8,2724.7,2.499]
[1739574911192,0.73387,2724.6,2724.5,6.91e-06]
[1739574912803,3.92494484,2724.6,2724.5,6.91e-06]
[1739574913002,9.92494484,2724.6,2724.5,6.91e-06]
[1739574918815,6.73387,2724.6,2724.5,6.91e-06]
[1739574921715,3.23387,2724.6,2724.5,6.91e-06]
[1739574922818,0.73387,2724.6,2724.5,6.91e-06]
[1739574923312,0.73387,2724.6,2724.5,0.73389691]
[1739574923718,0.73387,2724.6,2724.5,6.91e-06]
[1739574926221,3.2133,2724.8,2724.5,6.91e-06]
[1739574926422,3.2133,2724.8,2724.7,3.92491484]
[1739574926627,0.73933,2724.8,2724.6,1.38066]
[1739574927025,0.73384,2724.7,2724.6,0.6468]
[1739574927625,0.73931,2724.8,2724.6,0.6468]
[1739574927832,0.73931,2724.8,2724.7,0.73384]
[1739574928021,0.73384,2724.7,2724.6,1.38065]
[1739574928326,0.0055,2724.8,2724.6,0.6468]
[1739574928526,0.0055,2724.8,2724.7,3.23284]
[1739574928722,0.0055,2724.8,2724.7,6.42391484]
[1739574929229,0.73931,2724.8,2724.7,3.23284]
[1739574929620,3.2078,2725.2,2724.7,5.69007484]
[1739574929821,3.2078,2725.2,2725.1,0.73373]
[1739574930026,3.2078,2726.0,2725.1,4.33329]
[1739574930327,3.2078,2726.0,2725.5,0.7336]
[1739574930634,0.73357,2725.7,2725.6,0.6217]
[1739574932423,0.73365,2725.4,2725.3,3.92473484]
[1739574932628,0.73365,2725.4,2725.3,3.19107484]
[1739574932826,0.73368,2725.3,2725.2,0.6337]
[1739574934033,0.73373,2725.1,2725.0,2.499]
[1739574934232,0.73373,2725.1,2725.0,3.23275]
[1739574934430,3.2078,2725.5,2724.7,4.45457484]
[1739574934431,1.83417,2725.4,2724.7,4.45457484]
[1739574934631,0.7338,2724.9,2724.8,3.23281]
[1739574935430,0.7338,2724.9,2724.8,2.499]
[1739574935636,0.73381,2724.8,2724.7,5.55559484]
[1739574935832,0.73381,2724.8,2724.7,7.32077484]
[1739574936035,0.73381,2724.8,2724.7,4.1297]
[1739574936230,0.73381,2724.8,2724.7,1.2635]
[1739574936430,0.73381,2724.8,2724.7,0.6337]
[1739574937331,0.73381,2724.8,2724.7,1.36754]
[1739574937833,0.73381,2724.8,2724.7,0.6337]
[1739574938329,3.2078,2724.9,2724.5,20.34500691]
[1739574938534,0.73387,2724.6,2724.5,20.34500691]
[1739574938734,3.94167,2724.6,2724.5,20.34500691]
[1739574938936,3.94167,2724.6,2724.5,6.91e-06]
[1739574941733,0.73383,2724.8,2724.7,0.73381]
[1739574942233,3.2078,2725.0,2724.6,2.498]
[1739574942542,0.73378,2725.0,2724.9,0.73375]
[1739574943932,0.73378,2725.0,2724.7,3.19107484]
[1739574944136,0.73378,2725.0,2724.9,0.73376]
[1739574944430,5.04202,2725.3,2725.2,0.73371]
[1739574944431,3.9415,2725.3,2725.2,0.73371]
[1739574945541,0.73371,2725.2,2725.1,2.498]
[1739574945740,0.73371,2725.2,2725.1,3.23173]
[1739574946636,0.73371,2725.2,2725.1,3.23172]
[1739574946833,0.73368,2725.4,2725.3,0.73367]
[1739574947329,0.73369,2725.3,2725.2,0.73369]
[1739574947732,3.2078,2725.6,2725.1,2.498]
[1739574947932,0.73371,2725.2,2725.1,2.498]
[1739574948340,0.73371,2725.2,2725.1,3.23173]
[1739574949141,3.2078,2725.6,2725.1,2.498]
[1739574949538,0.73367,2725.4,2725.3,0.73366]
[1739574949742,3.2078,2725.6,2725.1,3.23172]
[1739574949743,0.73371,2725.2,2725.1,3.23172]
[1739574950043,0.73371,2725.2,2725.1,2.498]
[1739574950239,2.46327,2725.5,2725.0,3.94156]
[1739574950543,0.73381,2724.8,2724.7,20.34]
[1739574951732,0.73381,2724.8,2724.7,21.07384]
[1739574951936,0.73381,2724.8,2724.7,20.34]
[1739574953442,0.73381,2724.8,2724.5,6.91e-06]
[1739574953443,0.73387,2724.6,2724.5,6.91e-06]
[1739574953741,3.94167,2724.6,2724.5,6.91e-06]
[1739574955134,0.73387,2724.6,2724.5,6.91e-06]
[1739574955737,0.73387,2724.6,2724.5,0.73389691]
[1739574955937,0.73387,2724.6,2724.5,0.73387691]
[1739574957447,0.73387,2724.6,2724.5,0.73389691]
[1739574958541,0.73387,2724.6,2724.5,6.91e-06]
[1739574959143,3.94167,2724.6,2724.5,6.91e-06]
[1739574961246,3.94167,2724.6,2724.5,0.73389691]
[1739574961449,3.2078,2724.6,2724.5,0.73389691]
[1739574961642,0.73387,2724.6,2724.5,0.73389691]
[1739574962247,0.73387,2724.6,2724.5,6.91e-06]
[1739574962936,3.94167,2724.6,2724.5,6.91e-06]
[1739574963141,4.67797,2724.6,2724.5,6.91e-06]
[1739574963342,4.67797,2724.6,2724.5,0.73389691]
[1739574963547,3.94167,2724.6,2724.5,0.73389691]
[1739574963746,3.2078,2724.6,2724.5,0.73389691]
[1739574964045,0.73387,2724.6,2724.5,6.91e-06]
[1739574964847,3.94167,2724.6,2724.5,6.91e-06]
[1739574965249,3.2078,2724.6,2724.5,0.73389691]
[1739574965448,3.94167,2724.6,2724.5,0.73389691]
[1739574965752,3.94167,2724.6,2724.5,6.91e-06]
[1739574966451,3.2078,2724.6,2724.5,0.73389691]
[1739574966651,3.94167,2724.6,2724.5,0.73389691]
[1739574967452,1.35191,2724.9,2724.8,0.73381]
[1739574968155,0.6181,2724.9,2724.6,0.7118]
[1739574968349,0.73384,2724.7,2724.6,1.44564]
[1739574968949,0.6181,2724.9,2724.6,0.7118]
[1739574969149,0.73383,2724.8,2724.7,0.73381]
[1739574969347,0.6181,2724.9,2724.8,0.73381]
[1739574969748,1.35189,2724.9,2724.8,0.73381]
[1739574971156,3.94153,2725.2,2725.1,0.73373]
[1739574971357,3.9686,2725.2,2724.7,3.19107484]
[1739574971657,0.73378,2725.0,2724.9,0.73377]
[1739574971849,0.73378,2725.0,2724.9,3.23077]
[1739574972451,0.73378,2725.0,2724.9,3.23079]
[1739574972857,0.73378,2725.0,2724.9,2.497]
[1739574973053,0.73384,2724.7,2724.6,1.44564]
[1739574973256,0.73382,2724.9,2724.8,0.73378]
[1739574973558,0.73373,2725.1,2725.0,0.73373]
[1739574973851,3.9686,2725.2,2725.0,3.19107484]
[1739574974053,4.70231,2725.2,2725.1,0.73373]
[1739574974255,4.70231,2725.2,2725.1,1.44363]
[1739574974450,3.2078,2725.2,2725.1,1.44363]
[1739574974760,3.2078,2725.2,2725.1,1.81083]
[1739574975053,3.94151,2725.2,2725.1,1.81083]
[1739574975751,3.94151,2725.2,2725.1,3.2069]
[1739574975954,3.94151,2725.2,2725.1,3.94063]
[1739574976348,3.2078,2725.2,2725.1,3.94063]
[1739574976548,3.94151,2725.2,2725.1,3.94063]
[1739574978452,3.94151,2725.2,2725.1,3.2069]
[1739574979165,3.94151,2725.2,2725.1,2.497]
[1739574981164,3.2078,2725.2,2725.1,2.497]
[1739574981367,0.73371,2725.3,2725.2,0.73368]
[1739574982257,0.73367,2725.5,2725.4,0.73363]
[1739574982966,0.73367,2725.5,2725.4,1.44783]
[1739574985368,1.47032,2725.6,2725.5,0.73362]
[1739574985555,0.7367,2725.6,2725.5,0.73362]
[1739574985760,1.4703,2725.6,2725.5,0.73362]
[1739574986261,1.4703,2725.6,2725.5,3.23062]
[1739574986863,0.7367,2725.6,2725.5,3.23062]
[1739574987167,1.46434,2725.9,2725.8,0.73354]
[1739574987370,0.7308,2725.9,2725.6,3.19107484]
[1739574987557,0.73357,2725.8,2725.7,0.73355]
[1739574988566,1.46434,2725.9,2725.8,0.73354]
[1739574989664,1.46432,2725.9,2725.8,0.73354]
[1739574991467,0.73357,2725.8,2725.7,0.73356]
[1739574992860,1.46432,2725.9,2725.8,0.73354]
[1739574994069,0.7308,2725.9,2725.8,0.73354]
[1739574994366,1.46432,2725.9,2725.8,0.73354]
[1739574994563,2.56461,2725.9,2725.6,3.19107484]
[1739574994769,3.9386,2725.9,2725.7,2.496]
[1739574994969,0.73354,2725.8,2725.7,3.22957]
[1739574995268,0.73354,2725.8,2725.7,2.496]
[1739574995672,0.73362,2725.5,2725.4,5.02284]
[1739574995985,0.73362,2725.5,2725.4,3.5774]
[1739574996673,0.73362,2725.5,2725.4,2.8632]
[1739574998564,0.73362,2725.5,2725.4,3.59685]
[1739574998764,6.50146,2725.9,2725.4,2.8632]
[1739574998970,0.7336,2725.7,2725.6,0.73357]
[1739575000372,0.73358,2725.8,2725.7,0.73355]
[1739575001971,0.73354,2725.8,2725.7,0.73355]
[1739575002269,3.9386,2725.9,2725.8,0.73354]
[1739575002270,4.67215,2725.9,2725.8,0.73354]
[1739575003569,4.67215,2725.9,2725.8,3.22854]
[1739575004775,4.67212,2725.9,2725.8,2.495]
[1739575005074,4.67212,2725.9,2725.8,3.22854]
[1739575005265,4.67212,2725.9,2725.8,2.495]
[1739575005572,3.9386,2725.9,2725.4,3.575]
[1739575005769,1.83387,2725.8,2725.5,2.495]
[1739575005964,0.7336,2725.6,2725.5,3.22862]
[1739575006870,0.7336,2725.6,2725.5,2.495]
[1739575008671,0.7336,2725.6,2725.5,3.22862]
[1739575009673,0.7465,2725.8,2725.5,2.495]
[1739575009873,0.73359,2725.7,2725.6,0.73357]
[1739575012367,0.7336,2725.6,2725.5,2.495]
[1739575012774,0.7336,2725.6,2725.5,3.22862]